bitfinex/quotes_ETHUSD_20250319
["timestamp","ask_amount","ask_price","bid_price","bid_amount"]
[1742399713471,16.802,2058.4,2057.7,3.7807]
[1742399713472,16.802,2058.4,2058.3,4.85837]
[1742399713667,4.85729,2058.8,2058.3,4.85837]
[1742399713904,4.85702,2058.9,2058.4,4.85798]
[1742399714067,4.85702,2058.9,2058.4,9.71596]
[1742399714273,4.85739,2058.8,2058.3,4.85826]
[1742399714571,4.85732,2058.8,2058.4,4.85804]
[1742399714768,4.85711,2058.9,2058.4,4.85793]
[1742399715010,4.85726,2058.8,2058.4,9.71593]
[1742399715208,4.85711,2058.9,2058.5,4.85777]
[1742399715518,4.85719,2058.8,2058.5,3.0]
[1742399715689,4.85699,2058.9,2058.5,3.0]
[1742399715889,4.85699,2058.9,2058.5,7.85787]
[1742399716184,16.80200647,2059.0,2058.4,3.0]
[1742399716386,4.8573,2058.8,2058.4,7.85811]
[1742399716697,21.65877647,2059.0,2058.6,4.85764]
[1742399716901,16.80200647,2059.0,2058.7,3.0]
[1742399717082,16.80200647,2059.0,2058.8,4.85707]
[1742399717288,16.80200647,2059.0,2058.9,4.85696]
[1742399717485,6.47e-06,2059.0,2058.9,8.828363]
[1742399717693,6.47e-06,2059.0,2058.9,9.661163]
[1742399718423,6.47e-06,2059.0,2058.9,10.03086227]
[1742399720937,6.47e-06,2059.0,2058.9,16.17086227]
[1742399721747,6.47e-06,2059.0,2058.9,21.56286227]
[1742399722549,6.47e-06,2059.0,2058.9,21.193163]
[1742399722695,6.47e-06,2059.0,2058.9,6.14]
[1742399722905,6.47e-06,2059.0,2058.9,9.14]
[1742399723435,6.47e-06,2059.0,2058.9,13.99696]
[1742399723654,6.47e-06,2059.0,2058.9,9.14]
[1742399723809,6.47e-06,2059.0,2058.9,6.14]
[1742399724146,6.47e-06,2059.0,2058.9,13.99696]
[1742399724500,6.47e-06,2059.0,2058.9,9.14]
[1742399725512,4.85672647,2059.0,2058.9,9.14]
[1742399725768,6.47e-06,2059.0,2058.9,9.14]
[1742399726328,4.85672647,2059.0,2058.9,9.14]
[1742399726525,4.85708,2058.9,2058.7,3.0]
[1742399726723,4.85708,2058.9,2058.6,1.76037027]
[1742399727057,4.85708,2058.9,2058.5,5.374]
[1742399727359,4.85752,2058.7,2058.4,17.15143]
[1742399727554,4.85727,2058.8,2058.4,17.15143]
[1742399727762,0.0607187,2058.7,2058.2,4.85838]
[1742399727956,4.85781,2058.6,2058.2,10.22838]
[1742399728260,4.85791,2058.5,2058.2,3.0]
[1742399728436,4.85823,2058.4,2058.2,3.0]
[1742399728643,4.85823,2058.4,2058.1,6.1493]
[1742399728960,4.85791,2058.5,2058.1,11.00804]
[1742399729132,4.85767,2058.6,2058.2,4.85848]
[1742399729327,4.85767,2058.6,2058.2,9.71693]
[1742399729533,4.85767,2058.6,2058.2,7.85845]
[1742399729730,4.85803,2058.5,2058.2,3.0]
[1742399730058,4.85725,2058.8,2058.1,5.367]
[1742399730059,4.85822,2058.4,2058.1,5.367]
[1742399730363,4.85921,2058.0,2057.6,6.8947]
[1742399730562,4.85921,2058.0,2057.6,5.61471]
[1742399730760,4.85972,2057.8,2057.5,5.359]
[1742399730961,4.85982,2057.7,2057.5,5.359]
[1742399731164,4.85982,2057.7,2057.3,5.61525]
[1742399731477,4.85994,2057.7,2057.3,3.7547]
[1742399731632,4.85946,2057.9,2057.5,7.86018]
[1742399731969,4.85958,2057.8,2057.4,4.86031]
[1742399732163,4.8596,2057.8,2057.5,3.0]
[1742399732365,16.792,2058.1,2057.5,7.86017]
[1742399732537,4.85942,2057.9,2057.5,7.86013]
[1742399732868,4.85914,2058.0,2057.6,4.86002]
[1742399733065,0.8288,2058.8,2058.4,4.85801]
[1742399733271,6.14,2058.9,2058.4,4.85801]
[1742399733272,4.85697,2058.9,2058.5,4.85786]
[1742399733478,4.85697,2058.9,2058.4,4.85795]
[1742399733772,4.85723,2058.8,2058.4,9.71594]
[1742399733991,4.85741,2058.8,2058.3,8.63822]
[1742399734140,4.85751,2058.7,2058.3,3.7799]
[1742399734651,4.85773,2058.6,2058.3,3.7799]
[1742399734853,4.85773,2058.6,2058.3,3.0]
[1742399735803,4.85773,2058.6,2058.2,10.23159]
[1742399735804,4.85812,2058.5,2058.2,3.0]
[1742399735979,4.8579,2058.5,2058.2,3.0]
[1742399736184,4.85832,2058.4,2058.2,3.0]
[1742399736371,9.71693,2058.3,2058.1,6.14]
[1742399736688,5.67199,2058.6,2058.2,4.85848]
[1742399736865,0.8142,2058.6,2058.3,4.85828]
[1742399737084,10.99754,2058.7,2058.3,4.85828]
[1742399737403,10.99754,2058.7,2058.3,4.85826]
[1742399737557,10.99754,2058.7,2058.2,4.85858]
[1742399737558,6.14,2058.7,2058.2,4.85858]
[1742399737758,4.85784,2058.6,2058.2,4.85858]
[1742399738159,4.85793,2058.5,2058.2,4.85858]
[1742399738358,4.85784,2058.6,2058.3,3.0]
[1742399738608,4.85803,2058.5,2058.3,3.0]
[1742399738811,1.099803,2058.5,2058.0,5.355]
[1742399738967,1.099803,2058.5,2058.1,3.0]
[1742399739157,4.85904,2058.1,2057.8,8.343]
[1742399739361,4.85925,2058.0,2057.8,5.343]
[1742399739598,9.71847,2058.0,2057.6,6.35355444]
[1742399739912,4.85953,2057.9,2057.6,1.49372444]
[1742399740065,9.71906,2057.9,2057.6,0.71322444]
[1742399740269,4.85957,2057.8,2057.6,0.71322444]
[1742399740606,4.85942,2057.9,2057.5,10.20125]
[1742399740784,4.8592,2058.0,2057.6,7.85982]
[1742399741220,4.8592,2058.0,2057.7,4.85971]
[1742399741662,4.8585,2058.3,2057.9,4.85932]
[1742399741953,4.85753,2058.7,2058.4,3.0]
[1742399743536,4.85683647,2059.0,2058.6,5.68004]
[1742399743741,6.47e-06,2059.0,2058.6,0.8225]
[1742399743922,6.47e-06,2059.0,2058.6,3.8225]
[1742399744124,6.47e-06,2059.0,2058.9,7.85696]
[1742399744351,6.47e-06,2059.0,2058.9,13.23696]
[1742399745434,6.47e-06,2059.0,2058.9,13.99256]
[1742399745635,6.47e-06,2059.0,2058.9,14.35018981]
[1742399747677,6.47e-06,2059.0,2058.9,8.61256]
[1742399747882,6.47e-06,2059.0,2058.9,3.0]
[1742399748086,5.34238512,2059.0,2058.7,5.367]
[1742399748391,0.48566512,2059.0,2058.7,5.367]
[1742399748584,5.34246512,2059.0,2058.7,10.22441]
[1742399748750,4.85709,2058.9,2058.7,3.0]
[1742399748952,4.85724,2058.8,2058.4,10.22301]
[1742399749254,4.85709,2058.9,2058.6,3.0]
[1742399749453,0.48566512,2059.0,2058.7,4.85733]
[1742399749662,6.47e-06,2059.0,2058.7,4.85733]
[1742399749989,6.47e-06,2059.0,2058.7,4.85742]
[1742399750286,6.47e-06,2059.0,2058.6,4.85764]
[1742399750592,6.47e-06,2059.0,2058.7,7.85729]
[1742399750919,4.85682647,2059.0,2058.7,3.0]
[1742399751486,9.71383647,2059.0,2058.7,3.0]
[1742399751684,4.85690647,2059.0,2058.7,3.0]
[1742399752210,9.71379647,2059.0,2058.7,3.0]
[1742399752392,10.68513612,2059.0,2058.7,3.0]
[1742399752595,6.47e-06,2059.0,2058.9,4.85696]
[1742399752895,6.47e-06,2059.0,2058.9,3.0]
[1742399753648,6.47e-06,2059.0,2058.9,7.85696]
[1742399753848,6.47e-06,2059.0,2058.9,3.0]
[1742399754390,6.47e-06,2059.0,2058.9,7.85696]
[1742399754691,6.47e-06,2059.0,2058.9,3.0]
[1742399755300,4.85672647,2059.0,2058.9,3.0]
[1742399755589,1.77613712,2059.0,2058.4,0.7962]
[1742399755799,4.85786,2058.6,2058.3,5.324]
[1742399756238,4.85781,2058.6,2058.1,5.61064]
[1742399756396,4.858,2058.5,2058.2,5.321]
[1742399756601,4.85857,2058.3,2057.8,4.85943]
[1742399756835,4.85896,2058.1,2057.9,0.971922]
[1742399757038,5.61676,2058.5,2057.6,0.7519]
[1742399757039,4.85924,2058.0,2057.6,0.7519]
[1742399757241,4.85859,2058.3,2057.8,4.85955]
[1742399757443,4.85863,2058.2,2057.9,3.0]
[1742399757615,4.85863,2058.2,2057.8,10.765964]
[1742399757810,4.85863,2058.2,2057.8,5.906464]
[1742399758010,9.71687,2058.3,2057.9,7.85918]
[1742399758329,4.85838,2058.3,2057.9,7.85918]
[1742399758865,4.85777,2058.6,2058.1,4.85868]
[1742399759019,4.858,2058.5,2058.1,12.71742]
[1742399759214,4.858,2058.5,2058.1,7.8587]
[1742399759962,4.85847,2058.3,2058.0,0.813]
[1742399760259,4.85847,2058.3,2057.9,0.86750535]
[1742399760260,4.85881,2058.2,2057.9,3.0]
[1742399760445,4.85799,2058.5,2057.9,3.0]
[1742399760651,4.85781,2058.6,2058.1,7.85879]
[1742399760820,4.85799,2058.5,2058.1,7.85879]
[1742399761247,0.75,2058.8,2058.2,4.85859]
[1742399761450,4.85801,2058.5,2058.1,7.85879]
[1742399761757,9.71613,2058.5,2058.1,7.85879]
[1742399761954,4.85817,2058.4,2058.1,3.0]
[1742399762117,4.85838,2058.3,2058.1,3.0]
[1742399762315,4.85817,2058.4,2058.0,3.0]
[1742399762550,4.85848,2058.3,2058.0,3.0]
[1742399762749,4.85878,2058.2,2058.0,3.0]
[1742399763576,4.8584,2058.3,2058.0,3.0]
[1742399763716,4.85957,2057.8,2057.5,6.14]
[1742399763917,0.77,2058.1,2057.5,5.62548]
[1742399764155,4.85887,2058.1,2057.7,4.85958]
[1742399764456,4.85887,2058.1,2057.5,3.7653]
[1742399764457,4.85887,2058.1,2057.8,3.0]
[1742399764669,4.85921,2058.0,2057.8,3.0]
[1742399764974,4.8591,2058.0,2057.8,3.0]
[1742399765132,4.85942,2057.9,2057.5,0.7653]
[1742399765342,4.85965,2057.8,2057.5,1.89847658]
[1742399765539,4.86016,2057.6,2057.3,6.1482]
[1742399765864,4.86036,2057.5,2057.4,3.0]
[1742399766018,4.8605,2057.4,2057.1,5.342]
[1742399766218,4.86006,2057.6,2057.2,4.86094]
[1742399766526,4.86006,2057.6,2057.2,4.86084]
[1742399766725,4.86006,2057.6,2057.3,3.0]
[1742399766921,4.86006,2057.6,2057.3,4.86073]
[1742399767360,4.86006,2057.6,2057.2,7.86089]
[1742399767754,4.85981,2057.7,2057.2,7.86084]
[1742399768071,4.85968,2057.8,2057.4,3.0]
[1742399768257,4.85981,2057.7,2057.4,7.86041]
[1742399768458,4.85968,2057.8,2057.4,7.86041]
[1742399768459,4.85968,2057.8,2057.5,4.86026]
[1742399768771,4.85959,2057.8,2057.4,7.86041]
[1742399768971,9.71933,2057.8,2057.4,7.86041]
[1742399769276,4.85959,2057.8,2057.4,7.86041]
[1742399769582,4.85959,2057.8,2057.4,7.86039]
[1742399769785,9.71876,2057.9,2057.4,7.86038]
[1742399769963,4.85911,2058.0,2057.6,7.8599]
[1742399770143,4.85911,2058.0,2057.6,3.0]
[1742399770341,4.85911,2058.0,2057.6,7.8599]
[1742399770587,6.14,2058.1,2057.6,7.8599]
[1742399770588,6.14,2058.1,2057.8,3.0]
[1742399770751,4.8589,2058.1,2057.8,3.0]
[1742399771103,9.71794,2058.1,2057.8,3.0]
[1742399771387,16.793,2058.2,2057.8,3.0]
[1742399771541,16.793,2058.2,2058.1,3.0]
[1742399771878,4.86360153,2058.4,2058.2,3.0]
[1742399772190,0.00542153,2058.4,2058.2,3.0]
[1742399772355,0.00542153,2058.4,2058.2,4.85855]
[1742399772549,0.00542153,2058.4,2058.1,7.85882]
[1742399772751,0.00542153,2058.4,2058.1,7.8587]
[1742399773068,0.00542153,2058.4,2058.1,0.99235582]
[1742399773234,0.00542153,2058.4,2058.0,0.8089]
[1742399773235,0.00542153,2058.4,2058.2,9.7169]
[1742399773441,0.00542153,2058.4,2058.2,4.85844]
[1742399773637,0.00542153,2058.4,2058.3,4.85837]
[1742399773939,0.00542153,2058.4,2058.3,7.85837]
[1742399774139,0.00542153,2058.4,2058.3,8.65807]
[1742399774346,0.00542153,2058.4,2058.3,14.79807]
[1742399775003,1.53e-06,2058.4,2058.3,15.34807]
[1742399776811,6.47e-06,2059.0,2058.9,5.67086]
[1742399777118,6.47e-06,2059.0,2058.9,14.01442172]
[1742399777302,6.47e-06,2059.0,2058.9,13.96586]
[1742399777634,6.47e-06,2059.0,2058.9,14.51586]
[1742399778194,4.1e-06,2059.6,2059.5,5.62084]
[1742399778391,0.05,2060.0,2059.9,9.1699]
[1742399778392,1e-05,2060.0,2059.9,9.1699]
[1742399778617,1e-05,2060.0,2059.9,8.6199]
[1742399778805,1e-05,2060.0,2059.9,14.0129]
[1742399779712,1e-05,2060.0,2059.9,14.5629]
[1742399780019,1e-05,2060.0,2059.9,19.16225166]
[1742399780229,0.1256016,2060.8,2059.9,19.16225166]
[1742399780230,1.6e-06,2060.8,2060.7,5.64331]
[1742399780509,1.6e-06,2060.8,2060.7,14.08231]
[1742399780819,1.6e-06,2060.8,2060.3,12.3794]
[1742399780820,4.8525916,2060.8,2060.3,12.3794]
[1742399780979,0.48525916,2060.7,2060.4,3.0]
[1742399781180,4.85309,2060.6,2060.4,3.0]
[1742399781380,9.70613,2060.6,2060.4,3.0]
[1742399781626,4.85366,2060.3,2060.0,3.0]
[1742399782324,4.85336,2060.5,2060.0,4.85423]
[1742399782547,5.338816,2060.4,2060.0,4.85423]
[1742399782709,5.338816,2060.4,2060.0,7.85423]
[1742399782911,5.338876,2060.4,2060.0,3.0]
[1742399783115,5.338866,2060.4,2060.0,7.85427]
[1742399783345,0.48525916,2060.7,2060.1,3.0]
[1742399783547,0.48525916,2060.7,2060.3,8.64555]
[1742399783717,21.6385916,2060.8,2060.3,3.7919]
[1742399783912,21.6385916,2060.8,2060.3,3.0]
[1742399783913,16.7860016,2060.8,2060.3,3.0]
[1742399784144,4.85335,2060.5,2060.3,3.0]
[1742399784801,4.85342,2060.4,2060.3,3.0]
[1742399785201,9.70754,2060.3,2060.0,3.0]
[1742399785401,4.85348,2060.4,2060.0,7.85435]
[1742399785643,1.051568,2060.4,2060.0,3.0]
[1742399785799,4.85433,2060.1,2059.8,3.0]
[1742399785999,9.70866,2060.1,2059.7,10.65230947]
[1742399786197,4.85395,2060.2,2059.8,7.85481]
[1742399786402,4.85395,2060.2,2059.8,4.85481]
[1742399786849,4.85395,2060.2,2059.9,3.0]
[1742399787462,4.85432,2060.1,2059.9,3.0]
[1742399787753,9.70864,2060.1,2059.9,3.0]
[1742399787955,4.85432,2060.1,2059.9,3.0]
[1742399788264,9.70864,2060.1,2059.8,3.0]
[1742399788552,4.85438,2060.0,2059.8,3.0]
[1742399788754,4.85495,2059.8,2059.6,8.417]
[1742399788929,1.761764,2060.1,2059.6,13.27216]
[1742399789115,4.85442,2060.0,2059.6,10.27213]
[1742399789316,4.85442,2060.0,2059.6,15.12727]
[1742399789564,4.85442,2060.0,2059.7,4.85506]
[1742399789850,4.85442,2060.0,2059.7,3.0]
[1742399790355,4.85473,2059.9,2059.7,3.0]
[1742399790659,4.85484,2059.8,2059.6,5.417]
[1742399790824,4.85507,2059.7,2059.6,5.417]
[1742399791039,4.85507,2059.7,2059.3,0.7571]
[1742399791343,4.8554,2059.6,2059.3,5.408]
[1742399791525,4.8554,2059.6,2059.3,10.264]
[1742399791931,4.8554,2059.6,2059.4,3.0]
[1742399792127,9.71129,2059.5,2059.2,5.405]
[1742399792356,4.85609,2059.3,2059.1,0.8306]
[1742399792516,4.85625,2059.2,2059.0,6.14]
[1742399792723,4.85625,2059.2,2059.0,3.0]
[1742399793456,4.85625,2059.2,2058.9,5.401]
[1742399793693,0.7631,2059.6,2058.9,5.401]
[1742399793864,4.8561,2059.3,2059.0,3.0]
[1742399794037,4.85641,2059.2,2058.8,0.8216]
[1742399794359,4.85662,2059.1,2058.7,10.24626]
[1742399794861,4.8568,2059.0,2058.8,3.0]
[1742399795062,4.85662,2059.1,2058.8,3.0]
[1742399795756,4.85696,2058.9,2058.5,0.7947]
[1742399795960,4.85729,2058.8,2058.4,10.23504]
[1742399796517,4.85748,2058.7,2058.4,10.23504]
[1742399796747,4.85729,2058.8,2058.5,3.0]
[1742399797538,4.85675,2059.0,2058.7,3.0]
[1742399797776,5.65939,2059.1,2058.7,7.85739]
[1742399797938,4.85677,2059.0,2058.7,7.85739]
[1742399798138,4.85677,2059.0,2058.7,3.0]
[1742399798376,4.85677,2059.0,2058.6,3.0]
[1742399798377,4.85707,2058.9,2058.6,3.0]
[1742399799077,4.85656,2059.1,2058.7,0.7988]
[1742399799242,9.71324,2059.1,2058.7,5.65615]
[1742399799434,4.85656,2059.1,2058.8,3.0]
[1742399799655,4.85656,2059.1,2058.8,4.85716]
[1742399799876,9.71322,2059.1,2058.7,8.65621]
[1742399800174,4.85656,2059.1,2058.8,4.85711]
[1742399800379,4.85656,2059.1,2058.8,3.0]
[1742399800581,16.783,2059.2,2058.7,3.7988]
[1742399800744,4.85706,2058.9,2058.6,3.0]
[1742399800945,4.85723,2058.8,2058.6,3.0]
[1742399802153,4.85743,2058.7,2058.6,3.0]
[1742399802983,4.85813,2058.5,2058.1,0.8016]
[1742399803139,4.85832,2058.4,2058.1,0.8016]
[1742399803343,4.85746,2058.7,2058.2,4.85838]
[1742399803584,4.85746,2058.7,2058.3,3.0]
[1742399803774,4.85767,2058.6,2058.3,3.0]
[1742399804074,4.85791,2058.5,2058.2,0.35587417]
[1742399804281,4.85791,2058.5,2058.1,8.66033]
[1742399804589,4.85828,2058.4,2058.1,0.8016]
[1742399804787,4.85791,2058.5,2057.9,3.0]
[1742399804788,4.8587,2058.2,2057.9,3.0]
[1742399804941,4.85887,2058.1,2057.7,10.99975]
[1742399805277,4.85888,2058.1,2057.8,3.0]
[1742399805783,4.85862,2058.2,2057.8,7.85947]
[1742399806086,5.666,2058.3,2057.8,7.85935]
[1742399806380,16.788,2058.4,2058.1,3.7988]
[1742399806674,16.788,2058.4,2058.1,8.65752]
[1742399807180,16.788,2058.4,2058.1,8.65761]
[1742399807581,16.788,2058.4,2058.1,8.65745]
[1742399807881,16.789,2059.0,2058.6,4.8576]
[1742399808039,21.64574,2059.0,2058.6,4.8576]
[1742399808242,16.789,2059.0,2058.6,9.71515]
[1742399808443,21.64573,2059.0,2058.6,3.0]
[1742399808647,16.789,2059.0,2058.6,7.85755]
[1742399808982,16.789,2059.0,2058.6,8.65677]
[1742399809399,16.789,2059.0,2058.7,4.85727]
[1742399809546,16.789,2059.0,2058.8,7.85718]
[1742399809749,16.789,2059.0,2058.7,7.85739]
[1742399810085,16.789,2059.0,2058.9,4.85696]
[1742399810646,4.8561,2059.3,2058.9,4.85696]
[1742399810647,26.50199,2059.6,2059.2,7.85612]
[1742399810846,21.64648,2059.6,2059.2,7.85612]
[1742399811082,16.791,2059.6,2059.3,4.85581]
[1742399811590,19.521115,2059.6,2059.2,3.0]
[1742399811885,24.376575,2059.6,2059.0,3.0]
[1742399812042,21.64646,2059.6,2059.2,4.85606]
[1742399812246,21.64642,2059.6,2059.2,4.85606]
[1742399812652,4.85557,2059.5,2059.1,9.71279]
[1742399812891,21.64642,2059.6,2059.2,4.85622]
[1742399813096,4.85558,2059.5,2059.1,4.8563]
[1742399813492,4.85558,2059.5,2059.1,9.71264]
[1742399813691,4.85558,2059.5,2059.1,4.8563]
[1742399813899,2.30537784,2059.5,2059.0,3.0]
[1742399814194,4.85627,2059.2,2059.0,3.0]
[1742399814867,4.85617,2059.3,2059.0,3.0]
[1742399814868,4.85609,2059.3,2059.0,3.0]
[1742399815480,4.85579,2059.4,2059.0,7.85662]
[1742399815797,4.85613,2059.3,2059.0,3.0]
[1742399817092,7.100308,2059.5,2058.9,5.345]
[1742399817397,4.85663,2059.1,2058.7,8.21778277]
[1742399817693,4.85675,2059.0,2058.7,3.36036277]
[1742399817893,4.85664,2059.1,2058.7,3.36036277]
[1742399818080,4.85664,2059.1,2058.8,4.85717]
[1742399818669,4.85664,2059.1,2058.7,13.07495277]
[1742399819003,16.791,2059.6,2058.9,4.85696]
[1742399819211,16.791,2059.6,2059.2,9.71212]
[1742399819365,4.85555,2059.5,2059.1,8.67532]
[1742399819566,9.71127,2059.5,2059.1,8.67532]
[1742399819774,4.85579,2059.4,2059.1,3.8189]
[1742399820192,4.85579,2059.4,2059.1,8.67538]
[1742399820395,4.85559,2059.5,2059.2,4.85622]
[1742399820600,16.791,2059.6,2059.2,0.04855951]
[1742399820799,0.7839,2060.0,2059.5,3.0]
[1742399820983,9.7085,2060.1,2059.8,3.0]
[1742399821172,4.85423,2060.1,2059.7,3.0]
[1742399821505,4.85463,2059.9,2059.7,3.0]
[1742399821716,4.85462,2059.9,2059.5,10.18241]
[1742399821885,4.85486,2059.8,2059.6,3.0]
[1742399822280,4.85437,2060.0,2059.6,3.0]
[1742399822466,4.85436,2060.0,2059.6,3.0]
[1742399822672,4.85507,2059.7,2059.6,3.0]
[1742399822871,4.85507,2059.7,2059.5,5.327]
[1742399822872,4.85531,2059.6,2059.5,8.327]
[1742399823170,4.85531,2059.6,2059.5,3.0]
[1742399823604,4.85531,2059.6,2059.3,0.36524563]
[1742399823605,4.85562,2059.5,2059.3,3.0]
[1742399824076,4.85596,2059.4,2059.1,0.7691]
[1742399824271,4.85611,2059.3,2058.9,10.53557]
[1742399824476,4.85611,2059.3,2058.9,5.67872]
[1742399824708,4.85611,2059.3,2058.9,5.67867]
[1742399824915,4.85626,2059.2,2059.0,3.0]
[1742399825313,4.85626,2059.2,2058.9,3.35969778]
[1742399825510,4.85602,2059.3,2058.8,5.326]
[1742399825511,4.85674,2059.0,2058.8,5.326]
[1742399825815,4.8564,2059.2,2058.9,3.0]
[1742399825975,4.85657,2059.1,2058.9,3.0]
[1742399826374,4.85672,2059.0,2058.9,3.0]
[1742399826600,4.85672,2059.0,2058.7,3.0]
[1742399826787,9.71323,2059.1,2058.7,9.210903]
[1742399826986,4.85677,2059.0,2058.7,4.353583]
[1742399827918,5.62843,2059.3,2058.7,3.0]
[1742399827919,4.85697,2058.9,2058.7,3.0]
[1742399828098,5.62843,2059.3,2059.0,1.5]
[1742399828099,4.85649,2059.1,2059.0,1.5]
[1742399828681,5.65929,2059.1,2059.0,1.5]
[1742399829008,4.85814,2058.4,2058.0,0.7534]
[1742399829191,4.85791,2058.5,2058.2,3.0]
[1742399829514,4.8579,2058.5,2058.2,3.0]
[1742399829711,4.8579,2058.5,2058.2,7.85858]
[1742399829924,0.7692,2059.1,2058.3,5.301]
[1742399830101,0.7692,2059.1,2058.4,7.85814]
[1742399830303,4.85743,2058.7,2058.4,7.85814]
[1742399830618,4.85743,2058.7,2058.5,3.0]
[1742399831119,4.85733,2058.8,2058.5,3.0]
[1742399831321,4.85719,2058.9,2058.5,3.0]
[1742399831528,4.85719,2058.9,2058.5,3.7666]
[1742399831830,22.41386,2059.1,2059.0,4.85672]
[1742399831831,16.788,2059.1,2059.0,4.85672]
[1742399831981,21.64458,2059.1,2058.8,3.0]
[1742399832180,4.85681,2059.0,2058.8,3.0]
[1742399832410,4.85712,2058.9,2058.7,5.301]
[1742399832680,4.85722,2058.8,2058.6,3.0]
[1742399832883,4.85743,2058.7,2058.6,3.0]
[1742399833127,4.85722,2058.8,2058.6,3.0]
[1742399833577,0.76,2058.9,2058.5,5.298]
[1742399833781,4.85759,2058.7,2058.5,5.298]
[1742399834109,4.85849,2058.3,2058.0,6.1026]
[1742399834285,4.85849,2058.3,2058.0,3.8096]
[1742399835005,4.85849,2058.3,2058.0,3.0]
[1742399835213,4.85849,2058.3,2058.0,7.85907]
[1742399835410,9.71707,2058.3,2058.0,3.0]
[1742399835719,4.85861,2058.2,2058.0,3.0]
[1742399836099,5.68048,2058.4,2058.0,7.85898]
[1742399836298,4.85829,2058.4,2058.0,7.85906]
[1742399836690,9.71697,2058.3,2058.0,3.0]
[1742399837103,4.85862,2058.2,2058.0,3.0]
[1742399837544,4.85885,2058.1,2058.0,3.0]
[1742399837702,4.85885,2058.1,2057.9,3.0]
[1742399838115,4.85864,2058.2,2057.9,7.85923]
[1742399838317,4.85903,2058.1,2057.9,3.0]
[1742399838518,5.420879,2058.4,2057.9,3.0]
[1742399838519,9.71745,2058.2,2057.9,3.0]
[1742399838764,4.85869,2058.2,2057.9,3.0]
[1742399838905,4.85896,2058.1,2057.9,3.0]
[1742399839237,9.71799,2058.1,2057.9,3.0]
[1742399839442,4.85896,2058.1,2057.9,3.0]
[1742399839611,4.85933,2057.9,2057.5,5.64645]
[1742399839816,4.85933,2057.9,2057.6,8.265]
[1742399840020,4.85908,2058.0,2057.6,7.85996]
[1742399840540,4.85991,2057.7,2057.4,0.36836647]
[1742399840714,4.85955,2057.8,2057.4,4.86033]
[1742399840915,4.85955,2057.8,2057.4,7.86033]
[1742399841116,4.85997,2057.7,2057.5,3.0]
[1742399841432,4.85997,2057.7,2057.4,3.0]
[1742399841433,0.7632,2057.6,2057.1,0.35723151]
[1742399841620,4.86026,2057.5,2057.1,4.86121]
[1742399841818,9.72074,2057.5,2057.1,4.86121]
[1742399842019,4.8605,2057.4,2057.1,4.86121]
[1742399842329,4.86051,2057.4,2057.1,3.0]
[1742399842543,11.21193085,2057.5,2057.1,7.8612]
[1742399842748,11.21194085,2057.5,2057.1,7.8612]
[1742399842935,6.35149085,2057.5,2057.1,7.86104]
[1742399843321,4.86087,2057.3,2056.9,4.86165]
[1742399843521,5.57210909,2057.4,2057.0,3.0]
[1742399843728,4.86075,2057.3,2057.0,3.0]
[1742399844324,4.86126,2057.1,2056.8,3.8115]
[1742399844519,5.90425591,2057.2,2056.8,3.0]
[1742399844844,0.7839,2057.1,2056.8,4.8618]
[1742399845044,1.04328591,2057.2,2056.8,4.86168]
[1742399845248,5.90438591,2057.2,2056.8,4.86168]
[1742399845423,1.15491159,2057.1,2056.8,4.86168]
[1742399845624,1.15491159,2057.1,2056.6,0.00939397]
[1742399845825,4.86156,2057.0,2056.6,0.00939397]
[1742399846020,1.15491159,2057.1,2056.6,0.00939397]
[1742399846021,0.803,2056.8,2056.6,0.00939397]
[1742399846634,4.86185,2056.9,2056.6,0.00939397]
[1742399846833,1.53062301,2056.9,2056.6,0.00939397]
[1742399847035,4.8621,2056.8,2056.6,0.00939397]
[1742399847359,6.943,2057.0,2056.6,0.00939397]
[1742399847360,11.80465,2057.0,2056.6,0.00939397]
[1742399847569,4.86174,2056.9,2056.6,0.00939397]
[1742399847749,4.86206,2056.8,2056.6,0.00939397]
[1742399847919,5.83453,2056.7,2056.6,0.00939397]
[1742399848663,12.181,2057.0,2056.6,4.87178397]
[1742399848838,4.86173,2056.9,2056.6,0.00939397]
[1742399849161,4.86215,2056.7,2056.6,0.00939397]
[1742399850078,21.90428,2057.0,2056.6,0.00939397]
[1742399850238,12.181,2057.0,2056.6,0.00939397]
[1742399850438,12.181,2057.0,2056.7,4.86213]
[1742399850439,14.0617166,2057.0,2056.7,4.86213]
[1742399850679,0.803,2057.0,2056.6,4.87158397]
[1742399850831,5.66445,2057.0,2056.6,4.87158397]
[1742399851036,4.86172,2056.9,2056.6,0.00939397]
[1742399851374,0.803,2057.0,2056.7,4.86215]
[1742399851548,6.0023,2057.3,2056.7,6.1323044]
[1742399851743,6.0023,2057.3,2056.7,5.64493]
[1742399851744,4.86106,2057.2,2056.7,5.64493]
[1742399851975,5.6241,2057.3,2056.9,3.0]
[1742399852174,4.86113,2057.2,2056.9,3.0]
[1742399852473,4.86123,2057.1,2056.8,3.0]
[1742399852874,4.86098,2057.2,2056.8,7.8617]
[1742399853569,4.86126,2057.1,2056.8,3.0]
[1742399853786,6.523533,2057.2,2056.8,7.86191]
[1742399854070,4.86122,2057.1,2056.8,7.86191]
[1742399854271,9.72262,2057.1,2056.8,3.0]
[1742399854439,4.86178,2056.9,2056.6,0.00939397]